bitfinex-derivatives/quotes_ETHF0:USTF0_20250104
["timestamp","ask_amount","ask_price","bid_price","bid_amount"]
[1735996451326,3.2078,3641.4,3640.6,2.2108796]
[1735996451522,0.27474,3641.1,3640.8,0.27475]
[1735996451922,3.2078,3641.4,3641.2,0.27473]
[1735996452136,3.2078,3641.4,3640.9,2.2108796]
[1735996452137,3.2078,3641.4,3641.3,0.27472]
[1735996452325,3.2078,3641.4,3641.2,0.27473]
[1735996452525,3.2078,3641.4,3641.3,0.27472]
[1735996453733,3.2078,3641.4,3641.2,2.2108796]
[1735996453930,0.2747,3641.6,3641.3,0.27471]
[1735996454125,0.4362,3641.9,3641.5,2.2108796]
[1735996454334,0.4619,3642.1,3641.8,2.2108796]
[1735996454836,0.27467,3641.9,3641.6,0.2747]
[1735996455237,0.27467,3642.0,3641.6,0.2747]
[1735996455541,0.73656,3642.1,3641.8,2.4855496]
[1735996455732,0.4619,3642.1,3641.8,2.2108796]
[1735996456430,0.27467,3641.9,3641.5,2.2108796]
[1735996456644,0.27467,3641.9,3641.5,2.4855796]
[1735996456938,0.27467,3642.0,3641.7,0.27469]
[1735996457128,0.27467,3642.0,3641.3,3.2078]
[1735996457129,0.4619,3642.1,3641.8,2.2108796]
[1735996457329,0.27467,3641.9,3641.8,2.2108796]
[1735996458332,0.4619,3642.1,3641.8,2.2108796]
[1735996458736,0.27467,3641.9,3641.8,2.2108796]
[1735996459042,0.4619,3642.1,3641.8,2.2108796]
[1735996459235,3.2078,3642.3,3641.8,2.2108796]
[1735996459444,3.2078,3642.3,3642.2,2.2108796]
[1735996459631,3.2078,3643.1,3642.3,0.27464]
[1735996459837,3.2078,3643.1,3642.5,2.2108796]
[1735996460037,0.27462,3642.6,3642.5,2.2108796]
[1735996461844,3.2078,3643.1,3642.5,2.4855096]
[1735996462040,0.2746,3642.9,3642.8,2.2108796]
[1735996462246,3.2078,3643.1,3642.8,2.2108796]
[1735996462448,0.27458,3643.2,3642.9,0.2746]
[1735996462639,0.27458,3643.2,3643.1,2.2108796]
[1735996462835,0.4587,3643.3,3643.1,2.2108796]
[1735996463041,3.2078,3643.6,3643.1,2.2108796]
[1735996463242,0.27453,3643.8,3643.5,2.4854296]
[1735996463548,0.68908,3644.5,3644.1,0.2745]
[1735996463751,0.68908,3644.5,3644.1,2.4853796]
[1735996464140,3.2078,3644.7,3644.4,2.2108796]
[1735996464747,0.27446,3644.8,3644.4,2.2108796]
[1735996464947,3.48224,3645.1,3644.7,2.4853396]
[1735996465143,3.2078,3645.1,3644.7,2.2108796]
[1735996465350,3.2078,3645.1,3644.3,3.2078]
[1735996465351,3.2078,3645.1,3645.0,2.2108796]
[1735996466048,0.2246683,3646.7,3645.0,2.2108796]
[1735996466049,0.2743,3646.9,3646.2,0.27435]
[1735996466247,3.2078,3647.3,3646.7,2.59929527]
[1735996466442,0.27428,3647.2,3646.7,2.59929527]
[1735996466643,3.2078,3647.7,3647.1,2.59929527]
[1735996467046,0.27431,3646.7,3646.2,2.59929527]
[1735996467248,0.2743,3646.9,3646.2,2.59929527]
[1735996467444,3.2078,3647.2,3646.2,2.59929527]
[1735996467652,0.2743,3646.9,3646.3,0.27434]
[1735996467837,3.2078,3647.2,3646.2,2.59929527]
[1735996468043,0.27428,3647.1,3646.4,0.27433]
[1735996468350,3.2078,3648.4,3647.0,2.59929527]
[1735996468645,4.30358015,3648.0,3647.1,3.2078]
[1735996468845,0.27426,3647.4,3646.7,3.48211]
[1735996469149,4.30358015,3648.0,3647.0,2.59929527]
[1735996469344,0.27424,3647.7,3647.1,3.2078]
[1735996469550,0.27423,3647.9,3647.4,2.59929527]
[1735996469850,0.27422,3647.9,3647.5,3.2078]
[1735996470044,0.00378015,3648.0,3647.5,3.2078]
[1735996470251,0.27422,3647.9,3647.5,3.2078]
[1735996470646,0.00378015,3648.0,3647.8,2.59929527]
[1735996470847,0.27800015,3648.0,3647.8,2.59929527]
[1735996471050,0.00378015,3648.0,3647.8,2.59929527]
[1735996471253,0.27422,3647.9,3647.8,2.59929527]
[1735996471755,3.2078,3647.9,3647.0,2.59929527]
[1735996471949,0.00378015,3648.0,3647.2,3.2078]
[1735996472252,0.27426,3647.5,3647.2,3.2078]
[1735996472453,0.27426,3647.4,3647.2,3.2078]
[1735996472651,1.092,3647.4,3646.1,3.2078]
[1735996472840,0.27433,3646.5,3646.1,3.2078]
[1735996473047,0.2743,3646.9,3646.3,2.59929527]
[1735996473245,3.2078,3647.0,3646.1,3.2078]
[1735996473647,3.2078,3647.0,3646.3,2.59929527]
[1735996474046,0.27433,3646.5,3646.3,2.59929527]
[1735996474249,3.2078,3647.0,3646.3,2.59929527]
[1735996474443,3.2078,3647.0,3641.2,0.30533572]
[1735996474444,3.2078,3646.6,3645.9,2.59929527]
[1735996474643,0.27438,3645.8,3645.7,3.2078]
[1735996474950,3.2078,3646.6,3645.5,2.59929527]
[1735996475157,0.27439,3645.6,3645.5,2.59929527]
[1735996475456,3.2078,3646.3,3645.5,2.59929527]
[1735996475660,0.27812261,3646.0,3645.7,3.2078]
[1735996475953,0.27438,3645.9,3645.7,3.2078]
[1735996476147,0.27438,3645.8,3645.7,3.2078]
[1735996476653,0.27439,3645.6,3645.5,2.59929527]
[1735996476851,0.447,3645.9,3645.3,3.2078]
[1735996477050,0.2744,3645.6,3645.3,3.2078]
[1735996477250,0.447,3645.9,3645.3,3.48221]
[1735996477449,0.447,3645.9,3645.3,3.2078]
[1735996477649,0.27441,3645.4,3645.3,3.2078]
[1735996477846,0.447,3645.9,3645.1,2.87372527]
[1735996477847,0.27438,3645.8,3645.1,2.87372527]
[1735996478049,0.447,3645.9,3645.3,3.2078]
[1735996478252,0.27441,3645.4,3645.3,3.2078]
[1735996479057,3.2078,3645.6,3645.1,2.59929527]
[1735996479257,0.27445,3645.0,3644.8,3.2078]
[1735996479647,3.2078,3645.6,3644.7,2.59929527]
[1735996480048,0.27443,3645.2,3644.8,3.2078]
[1735996480352,0.27443,3645.2,3644.8,3.48225]
[1735996480753,3.2078,3645.6,3644.8,3.2078]
[1735996480954,3.2078,3645.6,3644.8,3.48225]
[1735996481154,0.27443,3645.2,3644.8,3.48225]
[1735996481745,0.447,3645.9,3645.1,2.59929527]
[1735996481960,0.27439,3645.7,3645.4,3.2078]
[1735996482152,0.2744,3645.6,3645.4,3.2078]
[1735996482550,0.447,3645.9,3645.4,3.2078]
[1735996482959,0.2744,3645.5,3645.4,3.2078]
[1735996483253,0.27443,3645.1,3645.0,3.2078]
[1735996483960,3.6548,3645.9,3645.0,3.2078]
[1735996484161,3.6548,3645.9,3645.1,0.27443]
[1735996484354,0.447,3645.9,3645.4,3.2078]
[1735996484761,0.27438,3645.8,3645.4,3.2078]
[1735996484954,0.447,3645.9,3645.4,3.2078]
[1735996485154,0.2744,3645.6,3645.4,3.2078]
[1735996485559,0.27438,3645.8,3645.4,3.2078]
[1735996485759,0.447,3645.9,3645.4,3.2078]
[1735996485959,0.2744,3645.6,3645.4,3.2078]
[1735996486662,0.447,3645.9,3645.1,2.59929527]
[1735996486964,0.2744,3645.5,3645.2,0.27442]
[1735996487567,0.27442,3645.2,3645.1,2.59929527]
[1735996487757,3.6548,3645.9,3645.1,2.59929527]
[1735996487959,4.34075,3645.9,3645.0,3.2078]
[1735996488171,0.27443,3645.2,3645.0,3.2078]
[1735996488464,0.68596,3645.8,3645.0,3.2078]
[1735996488665,0.27443,3645.2,3645.0,3.2078]
[1735996488965,0.27443,3645.1,3645.0,3.2078]
[1735996489963,0.27443,3645.2,3645.0,3.2078]
[1735996490156,0.68596,3645.8,3645.0,3.2078]
[1735996490665,4.7468,3645.9,3645.0,3.2078]
[1735996490867,0.27443,3645.2,3645.0,3.2078]
[1735996491456,0.27443,3645.2,3645.0,3.48224]
[1735996491662,4.7468,3645.9,3645.0,3.2078]
[1735996491962,0.27443,3645.1,3645.0,3.2078]
[1735996494870,3.2078,3645.5,3644.7,2.59929527]
[1735996494871,0.27445,3644.8,3644.7,2.59929527]
[1735996495365,0.27447,3644.7,3644.5,3.48228]
[1735996495565,0.27447,3644.7,3644.5,3.2078]
[1735996495761,0.27445,3644.9,3644.5,3.2078]
[1735996495966,0.27447,3644.7,3644.5,3.2078]
[1735996496260,0.27445,3645.0,3644.7,0.27446]
[1735996496562,3.2078,3645.5,3644.6,2.20244929]
[1735996496563,0.4395,3645.2,3644.6,2.20244929]
[1735996496767,0.27446,3644.7,3644.6,2.20244929]
[1735996497867,0.27448,3644.5,3644.0,5.41024929]
[1735996498063,3.6383,3645.1,3644.0,5.41024929]
[1735996498261,3.6383,3645.1,3644.3,2.20244929]
[1735996499172,0.27446,3644.7,3644.5,0.27447]
[1735996499767,0.27447,3644.6,3644.4,0.27448]
[1735996500066,3.6383,3645.1,3644.3,2.20244929]
[1735996500263,0.4395,3645.2,3644.7,3.2078]
[1735996500461,0.27444,3645.1,3644.9,0.27444]
[1735996500663,0.4395,3645.2,3644.9,2.20244929]
[1735996500862,0.71393,3645.2,3644.9,2.20244929]
[1735996501158,0.27444,3645.0,3644.9,2.20244929]
[1735996501362,0.4395,3645.2,3644.9,2.20244929]
[1735996501561,0.71392,3645.2,3645.0,0.27443]
[1735996501961,0.4395,3645.2,3645.0,0.27443]
[1735996502169,0.27444,3645.1,3644.9,2.47689929]
[1735996502664,0.4119,3645.9,3645.7,0.27438]
[1735996502976,0.00375261,3646.0,3645.8,5.41024929]
[1735996503268,0.00375261,3646.0,3645.8,5.68462929]
[1735996503269,0.27812261,3646.0,3645.8,5.68462929]
[1735996503466,0.00375261,3646.0,3645.5,2.20244929]
[1735996503769,0.00375261,3646.0,3645.5,2.47684929]
[1735996503770,0.27439,3645.7,3645.5,2.47684929]
[1735996504066,0.00375261,3646.0,3645.6,0.27439]
[1735996504263,0.00375261,3646.0,3645.4,3.2078]
[1735996504459,0.00375261,3646.0,3645.5,0.2744]
[1735996504661,0.27439,3645.6,3645.4,3.2078]
[1735996504861,0.27439,3645.7,3645.5,0.2744]
[1735996505161,0.00375261,3646.0,3645.4,3.2078]
[1735996505567,0.27437,3645.9,3645.4,3.48221]
[1735996505866,0.27438,3645.8,3645.6,0.27439]
[1735996506268,0.00375261,3646.0,3645.4,3.2078]
[1735996506565,0.00375261,3646.0,3645.6,0.27439]
[1735996506970,0.27439,3645.8,3645.4,3.2078]
[1735996507170,0.00375261,3646.0,3645.4,3.2078]
[1735996507469,0.00375261,3646.0,3645.4,3.48221]
[1735996507769,0.2744,3645.6,3645.4,3.48221]
[1735996508373,0.2744,3645.6,3645.5,0.2744]
[1735996508568,0.00375261,3646.0,3645.4,3.2078]
[1735996508869,0.27439,3645.6,3645.5,0.2744]
[1735996509077,0.00375261,3646.0,3645.4,3.2078]
[1735996509280,0.27438,3645.8,3645.4,3.2078]
[1735996509461,0.00375261,3646.0,3645.4,3.2078]
[1735996509866,0.2744,3645.6,3645.5,4.3073074]
[1735996510374,0.2744,3645.6,3645.5,4.5817074]
[1735996510677,0.2744,3645.6,3645.5,4.3073074]
[1735996511169,0.2744,3645.6,3645.4,7.7895174]
[1735996511371,0.00375261,3646.0,3645.4,7.5151074]
[1735996511571,0.27439,3645.7,3645.5,0.2744]
[1735996511771,0.00375261,3646.0,3645.6,0.27439]
[1735996511772,0.27438,3645.8,3645.6,0.27439]
[1735996511978,0.27438,3645.8,3645.7,0.27439]
[1735996512177,0.00375261,3646.0,3645.9,0.27437]
[1735996512672,0.27811261,3646.0,3645.9,0.27437]
[1735996512872,0.27811261,3646.0,3645.5,4.3073074]
[1735996512873,0.00375261,3646.0,3645.5,4.3073074]
[1735996513174,0.00375261,3646.0,3645.9,0.27437]
[1735996513478,0.27811261,3646.0,3645.9,0.27437]
[1735996513679,0.00375261,3646.0,3645.9,0.27437]
[1735996515672,0.00375261,3646.0,3645.9,4.5816774]
[1735996516569,0.84,3647.4,3645.9,4.5816774]
[1735996516570,0.27428,3647.1,3647.0,0.27428]
[1735996516773,0.27428,3647.2,3647.0,0.27428]
[1735996516972,0.84,3647.4,3646.7,3.2078]
[1735996517171,0.27429,3647.0,3646.8,0.2743]
[1735996517681,0.68568,3647.3,3646.3,3.2078]
[1735996517879,0.68568,3647.3,3646.5,0.27432]
[1735996517880,0.27432,3646.7,3646.5,0.27432]
[1735996518075,0.68568,3647.3,3646.7,4.26783283]
[1735996518270,0.2743,3646.8,3646.7,4.26783283]
[1735996519571,1.81168,3647.3,3646.6,0.27432]
[1735996519572,0.27431,3646.7,3646.6,0.27432]
[1735996519767,1.126,3647.3,3646.5,4.26783283]
[1735996519972,0.27431,3646.8,3646.5,4.26783283]
[1735996520173,0.27431,3646.8,3646.7,0.27431]
[1735996520577,0.2743,3646.9,3646.5,4.26783283]
[1735996520874,0.84,3647.4,3646.7,3.2078]
[1735996520875,0.27428,3647.2,3646.7,3.2078]
[1735996521075,0.27427,3647.3,3646.8,0.2743]
[1735996521277,0.84,3647.4,3646.7,3.2078]
[1735996521584,0.27427,3647.3,3647.2,0.27427]
[1735996521778,0.27427,3647.3,3647.1,3.48208]
[1735996521982,0.4064,3647.4,3647.1,3.2078]
[1735996522177,0.27427,3647.2,3647.1,3.2078]
[1735996522578,0.4064,3647.4,3646.7,3.2078]
[1735996522778,0.27428,3647.2,3647.0,0.27428]
[1735996522977,0.27428,3647.2,3647.0,4.54211283]
[1735996523277,0.4064,3647.4,3647.3,0.27427]
[1735996523674,0.68066,3647.4,3647.1,3.2078]
[1735996523984,0.68066,3647.4,3647.2,0.27427]
[1735996524178,4.3318,3647.9,3647.1,3.2078]
[1735996524378,0.27424,3647.7,3647.5,0.27425]
[1735996524573,3.2078,3647.9,3647.1,3.2078]
[1735996524787,0.27423,3647.9,3647.7,0.27423]
[1735996524981,0.27800015,3648.0,3647.8,0.27422]
[1735996525179,1.64457132,3648.4,3647.9,6.93324001]
[1735996525375,0.45948973,3648.7,3648.3,5.80924001]
[1735996525683,1.29166464,3648.8,3648.7,2.87560001]
[1735996525984,4.28039956,3649.1,3649.0,0.27414]
[1735996526583,4.28039956,3649.1,3648.7,5.80924001]
[1735996526783,4.28039956,3649.1,3649.0,0.27414]
[1735996527683,0.8264,3649.9,3648.9,4.26783283]
[1735996527882,0.2741,3649.6,3649.3,0.27411]
[1735996528085,0.2741,3649.6,3649.2,0.27412]
[1735996528378,0.8264,3649.9,3649.2,0.27412]
[1735996528586,0.2741,3649.6,3649.2,0.27412]
[1735996528876,0.8264,3649.9,3649.1,3.48193]
[1735996528877,0.27411,3649.5,3649.1,3.48193]
[1735996529083,0.27408,3649.8,3649.1,3.2078]
[1735996529281,0.27412,3649.2,3649.1,3.2078]
[1735996529477,0.27412,3649.3,3649.1,3.2078]
[1735996529783,0.8264,3649.9,3649.1,3.2078]
[1735996529784,0.27412,3649.2,3649.1,3.2078]
[1735996530179,0.27412,3649.3,3649.1,3.2078]
[1735996530382,0.27412,3649.2,3649.1,3.2078]
[1735996530886,3.2078,3649.8,3649.1,3.2078]
[1735996530887,40.8,3649.7,3649.1,3.2078]
[1735996531086,0.27412,3649.2,3649.1,3.2078]
[1735996531482,40.8,3649.7,3649.1,3.2078]
[1735996531789,0.27412,3649.3,3649.1,3.48193]
[1735996531989,40.8,3649.7,3649.1,3.2078]
[1735996532182,0.27412,3649.3,3649.1,3.2078]
[1735996532383,40.8,3649.7,3649.1,3.2078]
[1735996532585,0.27412,3649.2,3649.1,3.2078]
[1735996532778,1.124,3649.5,3648.6,5.80924001]
[1735996533084,0.27416,3648.7,3648.6,2.60144001]
[1735996534589,0.27419,3648.4,3648.2,5.80924001]
[1735996534786,0.27418,3648.5,3648.2,6.08343001]
[1735996534989,0.4332,3648.6,3648.2,5.80924001]
[1735996535185,0.4332,3648.6,3648.3,0.27419]
[1735996535486,0.4332,3648.6,3648.2,5.80924001]
[1735996535689,0.27419,3648.4,3648.2,5.80924001]
[1735996536283,0.4332,3648.6,3648.2,5.80924001]
[1735996536686,0.27419,3648.4,3648.2,5.80924001]
[1735996537085,0.4332,3648.6,3648.2,5.80924001]
[1735996537287,0.27418,3648.4,3648.2,6.08344001]
[1735996537790,0.27419,3648.3,3648.2,5.80924001]
[1735996541795,0.27419,3648.3,3648.2,3.2078]
[1735996542098,0.4336,3648.5,3648.2,3.2078]
[1735996542395,0.27419,3648.3,3648.2,5.40626339]
[1735996544292,0.4336,3648.5,3647.2,3.2078]
[1735996544293,3.89328,3648.4,3647.2,3.2078]
[1735996544596,0.27427,3647.3,3647.2,3.2078]
[1735996546399,0.27427,3647.3,3647.2,5.40626339]
[1735996546997,0.8877,3647.7,3647.2,5.40626339]
[1735996547204,0.27427,3647.3,3647.2,5.40626339]
[1735996548805,0.4028,3647.6,3647.2,5.40626339]
[1735996549010,0.27426,3647.4,3647.2,3.48207]
[1735996550106,0.27427,3647.4,3647.2,3.48207]
[1735996550305,0.27427,3647.3,3647.2,3.2078]
[1735996550512,0.27427,3647.3,3647.2,5.40626339]
[1735996553604,0.27427,3647.3,3647.2,3.2078]
[1735996553813,0.2743,3646.9,3646.8,3.2078]
[1735996554600,0.68564,3647.5,3646.8,3.2078]
[1735996554808,0.27427,3647.2,3647.1,2.19846339]
[1735996555608,0.27427,3647.2,3646.8,3.4821]
[1735996555609,0.4028,3647.6,3646.8,5.40626339]
[1735996555911,0.2743,3646.9,3646.8,5.40626339]
[1735996556807,0.2743,3646.9,3646.8,3.2078]
[1735996556999,0.27432,3646.6,3646.5,2.19846339]
[1735996557207,0.27432,3646.6,3646.5,2.47279339]
[1735996557505,0.27434,3646.3,3646.2,4.26783283]
[1735996559104,0.426,3646.5,3646.0,3.2078]
[1735996559313,0.68584,3646.4,3645.6,7.47563283]
[1735996559610,0.27438,3645.8,3645.7,2.19846339]
[1735996561115,0.27439,3645.7,3645.6,3.2078]
[1735996562611,0.4451,3645.9,3645.6,3.48219]
[1735996562807,0.27438,3645.8,3645.7,2.19846339]
[1735996563112,0.27439,3645.7,3645.6,3.2078]
[1735996564014,0.27442,3645.3,3645.2,2.19846339]
[1735996564413,0.27441,3645.4,3645.2,2.47288339]
[1735996564619,0.27441,3645.4,3645.2,2.19846339]
[1735996565015,0.27441,3645.4,3645.2,2.47288339]
[1735996565413,0.27442,3645.3,3645.2,2.19846339]
[1735996565613,0.2744,3645.5,3645.2,2.47288339]
[1735996565812,0.2744,3645.5,3645.2,2.19846339]
[1735996566015,0.27436,3646.1,3645.9,0.27437]
[1735996566319,3.2078,3646.5,3645.9,0.27437]
[1735996566320,0.27435,3646.3,3646.0,0.27436]
[1735996566520,0.27436,3646.1,3645.9,3.48217]
[1735996566720,2.4397,3646.7,3645.9,3.2078]
[1735996566916,0.27435,3646.2,3646.0,0.27436]
[1735996567111,2.4397,3646.7,3646.0,0.27436]
[1735996567323,0.27432,3646.6,3646.4,0.27433]
[1735996567716,0.27433,3646.5,3646.3,0.27434]
[1735996568226,1.3027,3646.7,3646.1,2.19846339]
[1735996568422,0.27432,3646.6,3646.4,0.27433]
[1735996568620,1.3027,3646.7,3646.3,3.2078]
[1735996569022,0.8637,3646.7,3646.6,0.27432]
[1735996569318,0.27429,3647.0,3646.8,0.2743]
[1735996569522,0.2743,3646.9,3646.8,3.2078]
[1735996572424,8.2078,3646.9,3645.8,3.2078]
[1735996572626,0.27437,3645.9,3645.8,3.2078]
[1735996573121,40.8,3646.5,3645.8,3.2078]
[1735996573328,0.27437,3645.9,3645.8,3.2078]
[1735996575525,0.27441,3645.5,3645.4,3.2078]
[1735996576228,0.2744,3645.6,3645.4,3.4822]
[1735996576728,0.8671,3646.0,3645.4,3.48221]
[1735996576929,0.2744,3645.5,3645.4,3.2078]
[1735996577329,1.55304,3646.0,3645.0,5.40626339]
[1735996577330,3.2078,3645.9,3645.0,5.40626339]
[1735996577529,0.27441,3645.4,3645.2,0.27442]
[1735996577727,0.68588,3646.2,3645.0,5.40626339]
[1735996577728,0.4318,3646.4,3645.3,2.19846339]
[1735996577929,0.4318,3646.4,3645.9,0.27437]
[1735996578228,0.27437,3645.9,3645.8,3.2078]
[1735996578425,0.27438,3645.9,3645.7,0.27438]
[1735996578624,4.3448,3646.3,3645.7,0.27438]
[1735996578625,0.27435,3646.2,3645.7,0.27438]
[1735996578826,4.3448,3646.3,3645.4,2.19846339]
[1735996579025,0.27438,3645.8,3645.6,0.27439]
[1735996579429,6.54326339,3646.3,3645.3,7.47563283]
[1735996579635,6.54326339,3646.3,3645.4,0.27441]
[1735996579636,0.2744,3645.6,3645.4,0.27441]
[1735996579932,0.4234,3645.5,3645.4,0.27441]
[1735996580121,0.4234,3645.5,3645.4,2.47287339]
[1735996582323,0.4234,3645.5,3645.3,3.2078]
[1735996582523,0.27441,3645.4,3645.3,3.2078]
[1735996582732,0.27442,3645.2,3645.1,4.26783283]
[1735996582938,0.27442,3645.2,3645.1,3.59713283]
[1735996583139,0.27442,3645.2,3645.1,0.91433283]
[1735996583841,0.27449,3644.4,3644.2,3.48229]
[1735996584042,1.133,3644.7,3644.2,3.2078]
[1735996584334,1.133,3644.7,3644.1,6.40174924]
[1735996584335,0.2745,3644.2,3644.1,6.40174924]
[1735996584540,3.4823,3644.2,3644.1,6.40174924]
[1735996584735,8.4823,3644.2,3644.1,6.40174924]
[1735996584939,8.4823,3644.2,3644.1,3.45349207]
[1735996585135,8.4823,3644.2,3644.1,0.14232207]
[1735996585437,0.27451,3644.0,3643.9,6.39590773]
[1735996585738,2.47297339,3644.0,3643.9,5.73397773]
[1735996585933,0.27458,3643.2,3643.1,6.40409066]
[1735996586143,4.61538,3643.2,3643.1,6.40409066]
[1735996586532,0.68632,3643.9,3643.1,6.40409066]
[1735996586533,3.2078,3643.7,3643.1,6.40409066]
[1735996586728,1.133,3643.9,3643.4,3.2078]
[1735996586928,1.133,3643.9,3643.6,0.27454]
[1735996587138,1.133,3643.9,3643.5,0.4226]
[1735996587139,1.133,3643.9,3643.5,0.69715]
[1735996587328,1.133,3643.9,3643.5,0.4226]
[1735996587329,0.27453,3643.8,3643.5,0.4226]
[1735996587534,0.27454,3643.7,3643.5,0.4226]
[1735996587738,1.133,3643.9,3643.6,0.27454]
[1735996587942,1.133,3643.9,3643.7,0.27454]
[1735996588238,1.133,3643.9,3643.6,0.27454]
[1735996588635,1.40752,3643.9,3643.5,0.4226]
[1735996588841,1.133,3643.9,3643.5,0.4226]
[1735996589039,2.19846339,3643.8,3643.5,0.4226]
[1735996589230,0.27454,3643.6,3643.5,0.4226]
[1735996589741,2.19846339,3643.8,3643.0,0.4317]
[1735996589945,2.19846339,3643.8,3643.0,0.8382]
[1735996590143,0.27456,3643.4,3643.0,1.11279]
[1735996590437,0.27456,3643.5,3643.1,0.27458]
[1735996590643,3.2078,3643.7,3643.1,0.27458]
[1735996590935,3.2078,3643.7,3643.0,1.11279]
[1735996591137,0.27455,3643.5,3643.1,0.27458]
[1735996591642,0.27456,3643.4,3643.1,0.27458]
[1735996591838,0.27456,3643.4,3643.0,1.11279]
[1735996592236,0.27456,3643.4,3643.1,0.27458]
[1735996592438,0.27456,3643.4,3643.0,1.11279]
[1735996592644,0.27456,3643.4,3643.1,0.27458]
[1735996592941,0.27456,3643.4,3643.0,1.11279]
[1735996593346,0.27456,3643.4,3643.0,0.8382]
[1735996593546,1.40856,3643.5,3643.1,0.27458]
[1735996593737,0.27456,3643.4,3643.0,0.8382]
[1735996593944,0.27456,3643.4,3643.1,0.27458]
[1735996594445,1.134,3643.5,3643.0,0.8382]
[1735996594743,2.60533051,3643.9,3643.0,0.8382]
[1735996594744,4.3418,3644.5,3643.4,3.2078]
[1735996594938,4.3418,3644.5,3643.1,2.60533051]
[1735996594939,3.2078,3644.9,3644.0,5.81313051]
[1735996595136,3.2078,3644.9,3644.2,3.2078]
[1735996595339,3.29147051,3644.8,3643.5,3.6339]
[1735996595546,2.60533051,3644.8,3643.6,0.4473]
[1735996595737,1.40846,3644.7,3644.1,0.2745]
[1735996596040,0.27449,3644.4,3644.0,3.48231]
[1735996596241,0.27448,3644.5,3644.0,3.2078]
[1735996596445,0.2745,3644.3,3644.0,3.48231]
[1735996596649,0.27451,3644.1,3644.0,3.2078]
[1735996596947,1.134,3644.7,3643.6,0.4473]
[1735996596948,3.2078,3644.4,3643.6,0.4473]
[1735996597345,0.27451,3644.1,3643.8,0.27453]
[1735996598046,1.134,3644.7,3643.7,0.27453]
[1735996598258,0.27452,3644.0,3643.7,0.27453]
[1735996598747,0.27452,3644.0,3643.6,0.4473]
[1735996599255,0.27452,3644.0,3643.7,0.27454]
[1735996599842,0.27454,3643.7,3643.6,0.4473]
[1735996601856,0.27458,3643.2,3643.1,3.2078]
[1735996602057,0.27458,3643.2,3643.1,3.6496]
[1735996602641,0.27458,3643.2,3643.1,0.4418]
[1735996602950,0.27458,3643.2,3642.6,3.2078]
[1735996602951,0.27461,3642.7,3642.6,3.2078]
[1735996603746,3.2078,3642.7,3642.3,1.2763]
[1735996603948,0.27464,3642.4,3642.3,1.2763]
[1735996604148,0.27464,3642.4,3642.3,0.424]
[1735996605245,1.134,3642.6,3641.9,3.2078]
[1735996605554,0.27469,3641.7,3641.6,0.424]
[1735996607952,0.27474,3641.1,3640.9,3.2078]
[1735996608254,0.27474,3641.1,3641.0,0.446]
[1735996609755,0.27474,3641.0,3640.9,3.2078]
[1735996609946,1.40874,3641.0,3640.9,3.2078]
[1735996611256,0.27478,3640.5,3640.4,0.42]
[1735996612959,0.27481,3640.1,3640.0,0.8491]
[1735996613663,0.27484,3639.7,3639.6,0.4276]
[1735996613963,1.14,3640.1,3639.6,3.6354]
[1735996614256,1.41481,3640.1,3639.7,0.27483]
[1735996614563,1.14,3640.1,3639.7,0.27484]
[1735996614756,1.14,3640.1,3639.6,3.6354]
[1735996614757,1.41481,3640.1,3639.6,3.6354]
[1735996615058,1.14,3640.1,3639.6,3.6354]
[1735996615259,1.14,3640.1,3639.9,0.27482]
[1735996615459,3.2078,3640.7,3640.0,0.27481]
[1735996615658,0.27479,3640.4,3640.1,0.4447]
[1735996615960,0.27472,3641.4,3640.9,0.27474]
[1735996616160,0.27473,3641.1,3641.0,0.4121]
[1735996616357,0.27473,3641.1,3640.7,3.2078]
[1735996616358,0.27476,3640.8,3640.7,3.2078]
[1735996616556,1.14,3640.9,3640.3,0.4186]
[1735996616764,0.27479,3640.3,3640.2,0.4121]
[1735996617155,3.2078,3640.6,3639.7,0.4423]
[1735996617357,0.68691,3640.8,3639.7,0.4423]
[1735996617358,0.27483,3639.8,3639.7,0.4423]
[1735996617755,0.27485,3639.6,3639.5,0.4121]
[1735996623477,0.27484,3639.8,3639.5,0.68695]
[1735996623762,1.141,3639.9,3639.5,0.4121]
[1735996623964,3.2078,3639.8,3639.5,0.4121]
[1735996624163,0.27485,3639.6,3639.5,0.4121]
[1735996624670,0.27488,3639.1,3639.0,3.6452]
[1735996624871,0.27488,3639.1,3639.0,4.0487]
[1735996625072,0.27485,3639.6,3639.2,0.27487]
[1735996625270,3.2078,3639.8,3639.0,6.2580845]
[1735996625466,0.27486,3639.5,3639.0,4.32359]
[1735996625660,0.27487,3639.4,3639.0,4.0487]
[1735996625966,0.27484,3639.7,3639.0,4.0487]
[1735996626161,5.4171845,3639.8,3639.0,4.0487]
[1735996626372,0.27486,3639.4,3639.0,4.32358]
[1735996626567,0.27484,3639.7,3639.0,4.0487]
[1735996626769,0.27484,3639.7,3639.3,0.27486]
[1735996626964,3.2078,3639.8,3639.5,0.27485]
[1735996627164,3.2078,3640.2,3639.4,3.2078]
[1735996627369,3.2078,3640.2,3639.4,3.89495]
[1735996627668,3.2078,3640.2,3640.0,0.27481]
[1735996627870,3.2078,3640.2,3640.1,1.58831]
[1735996628070,0.2748,3640.3,3640.1,1.3135]
[1735996628274,0.27479,3640.4,3640.1,1.58831]
[1735996628574,1.141,3640.5,3640.1,1.3135]
[1735996628774,1.41578,3640.5,3640.2,0.2748]
[1735996628963,1.141,3640.5,3640.2,0.2748]
[1735996629268,0.27479,3640.4,3640.1,1.58831]
[1735996629473,1.41578,3640.5,3640.3,0.27479]
[1735996629770,0.27479,3640.4,3640.1,1.3135]
[1735996629972,1.141,3640.5,3640.1,1.3135]
[1735996630276,0.2748,3640.2,3640.1,1.3135]